bitfinex/quotes_BTCUSD_20250225
["timestamp","ask_amount","ask_price","bid_price","bid_amount"]
[1740460908255,0.15,92391.0,92368.0,0.00380274]
[1740460908496,0.01454085,92400.0,92368.0,0.00380274]
[1740460908678,0.0169821,92374.0,92369.0,0.00151558]
[1740460908890,0.0169821,92374.0,92369.0,0.00375475]
[1740460909299,0.26639283,92420.0,92369.0,0.00375475]
[1740460909509,0.26639283,92411.0,92373.0,0.02]
[1740460909718,0.26639283,92411.0,92385.0,0.08481262]
[1740460910129,0.26639283,92411.0,92385.0,0.08854509]
[1740460910424,0.26639283,92411.0,92385.0,0.08554509]
[1740460910799,0.02663928,92410.0,92396.0,0.08681262]
[1740460911118,0.00043071,92411.0,92398.0,0.0763]
[1740460911325,0.00043071,92411.0,92398.0,0.0753]
[1740460911945,0.00043071,92411.0,92399.0,0.00373247]
[1740460913079,0.00143071,92411.0,92399.0,0.00373247]
[1740460913694,0.00043071,92411.0,92399.0,0.00373247]
[1740460914134,0.00143071,92411.0,92399.0,0.00373247]
[1740460914460,0.00795783,92400.0,92398.0,0.00379489]
[1740460914658,0.00795783,92400.0,92385.0,0.08181262]
[1740460915379,0.02292287,92411.0,92385.0,0.08181262]
[1740460915380,0.01454085,92410.0,92385.0,0.08181262]
[1740460915534,0.03920394,92410.0,92375.0,0.3224]
[1740460915745,0.01454085,92408.0,92375.0,0.3224]
[1740460916080,0.00854786,92409.0,92375.0,0.3224]
[1740460916081,0.00854786,92407.0,92375.0,0.3224]
[1740460916481,0.00854786,92407.0,92398.0,0.002]
[1740460916639,0.00854786,92407.0,92385.0,0.003]
[1740460916843,0.00043071,92411.0,92373.0,0.02]
[1740460917045,0.01454085,92409.0,92373.0,0.05814716]
[1740460917257,0.01454085,92409.0,92375.0,0.001]
[1740460917664,0.01454085,92409.0,92376.0,0.1255]
[1740460918786,0.003,92407.0,92376.0,0.1255]
[1740460919154,0.15,92416.0,92376.0,0.1255]
[1740460919426,0.004,92409.0,92377.0,0.015586]
[1740460919865,0.004,92409.0,92376.0,0.1255]
[1740460920068,0.003,92407.0,92378.0,0.00393115]
[1740460920274,0.02700369,92415.0,92378.0,0.00393115]
[1740460920611,0.004,92409.0,92378.0,1e-08]
[1740460920867,0.0786,92408.0,92376.0,0.04570604]
[1740460921046,0.01454085,92407.0,92379.0,0.00540533]
[1740460921297,0.01454085,92407.0,92359.0,0.02]
[1740460921626,0.01698152,92398.0,92359.0,0.02]
[1740460921812,0.01454085,92397.0,92368.0,0.00540533]
[1740460922829,0.01454085,92397.0,92339.0,0.3224]
[1740460923029,0.01454085,92397.0,92308.0,0.0016972]
[1740460923030,0.01454085,92395.0,92350.0,0.3224]
[1740460923230,0.02700369,92394.0,92350.0,0.3224]
[1740460923891,0.02700369,92394.0,92363.0,0.0463]
[1740460924093,0.02,92395.0,92363.0,0.05170533]
[1740460924293,0.04766309,92395.0,92362.0,0.0016978]
[1740460924662,0.15,92393.0,92362.0,0.0016978]
[1740460924858,0.02,92390.0,92354.0,0.0463]
[1740460925090,0.0988,92389.0,92354.0,0.0463]
[1740460926146,0.0169846,92382.0,92354.0,0.0463]
[1740460926328,0.0169846,92382.0,92361.0,0.0054211]
[1740460926669,0.0169846,92382.0,92354.0,0.0463]
[1740460926942,0.0169846,92382.0,92362.0,0.0054211]
[1740460927134,0.0169846,92382.0,92354.0,0.0463]
[1740460927245,0.0169846,92382.0,92363.0,0.00551628]
[1740460927443,0.0169846,92382.0,92360.0,0.00797411]
[1740460927444,0.0239846,92382.0,92360.0,0.00797411]
[1740460927670,0.0299846,92382.0,92361.0,0.08821628]
[1740460927888,0.013,92382.0,92361.0,0.08821628]
[1740460928089,0.013,92382.0,92362.0,0.0464]
[1740460928299,0.013,92382.0,92362.0,0.05081302]
[1740460928840,0.006,92382.0,92362.0,0.05191627]
[1740460929068,0.01454085,92400.0,92362.0,0.05191627]
[1740460929223,0.007,92382.0,92362.0,0.05191627]
[1740460929626,0.01454085,92400.0,92362.0,0.05191627]
[1740460930225,0.005,92382.0,92362.0,0.05191627]
[1740460930423,0.01454085,92400.0,92362.0,0.05191627]
[1740460930598,0.003,92382.0,92362.0,0.05191627]
[1740460930804,0.01454085,92394.0,92362.0,0.0464]
[1740460931010,0.0085763,92395.0,92363.0,0.00548819]
[1740460931246,0.01454085,92394.0,92363.0,0.00548819]
[1740460932406,0.01698308,92387.0,92363.0,0.00548819]
[1740460932608,0.004,92382.0,92363.0,0.00548819]
[1740460932815,0.005,92382.0,92363.0,0.00548819]
[1740460933313,0.01698308,92387.0,92363.0,0.00548819]
[1740460933576,0.02398308,92387.0,92363.0,0.00548819]
[1740460933974,0.004,92382.0,92363.0,0.00548819]
[1740460934151,0.02398308,92387.0,92363.0,0.00548819]
[1740460934837,0.01698308,92387.0,92363.0,0.00548819]
[1740460935241,0.005,92382.0,92363.0,0.00548819]
[1740460935622,0.01698308,92387.0,92365.0,0.0468]
[1740460935825,0.01698308,92387.0,92366.0,0.00550337]
[1740460936054,0.02998308,92387.0,92366.0,0.00550337]
[1740460936252,0.02398308,92387.0,92366.0,0.00550337]
[1740460936450,0.004,92382.0,92367.0,0.0792]
[1740460936889,0.02398308,92387.0,92368.0,0.00550337]
[1740460937297,0.02898308,92387.0,92368.0,0.00550337]
[1740460937918,0.02198308,92387.0,92368.0,0.00550337]
[1740460938115,0.02198308,92387.0,92367.0,0.0792]
[1740460938292,0.02798308,92387.0,92367.0,0.0792]
[1740460938497,0.02298308,92387.0,92367.0,0.0792]
[1740460938691,0.003,92382.0,92367.0,0.0792]
[1740460938906,0.003,92382.0,92368.0,0.0055006]
[1740460939097,0.17298308,92387.0,92368.0,0.0055006]
[1740460939303,0.17798308,92387.0,92365.0,0.0468]
[1740460939682,0.16698308,92387.0,92365.0,0.0468]
[1740460939885,0.003,92382.0,92365.0,0.0468]
[1740460940229,0.004,92382.0,92366.0,0.00548195]
[1740460941543,0.17198308,92387.0,92366.0,0.00548195]
[1740460941742,0.005,92382.0,92365.0,0.0468]
[1740460941886,0.005,92382.0,92367.0,0.00548195]
[1740460942079,0.009,92382.0,92365.0,0.0468]
[1740460942456,0.01454085,92386.0,92368.0,0.00548195]
[1740460942648,0.005,92382.0,92365.0,0.0468]
[1740460943058,0.01454085,92386.0,92366.0,0.00548195]
[1740460943254,0.004,92382.0,92366.0,0.00548195]
[1740460943415,0.009,92382.0,92366.0,0.00548195]
[1740460943833,0.16454085,92380.0,92366.0,0.00548195]
[1740460944041,0.16454085,92380.0,92362.0,0.0016974]
[1740460945198,0.01454085,92378.0,92360.0,0.00676995]
[1740460945408,0.16454085,92376.0,92360.0,0.00676995]
[1740460945761,0.16454085,92376.0,92356.0,0.0488]
[1740460945968,0.16454085,92376.0,92356.0,0.04892912]
[1740460947677,0.01454085,92374.0,92356.0,0.00012912]
[1740460947918,0.16454085,92374.0,92356.0,0.00012912]
[1740460948121,0.01698556,92370.0,92356.0,0.00012912]
[1740460948324,0.01454085,92367.0,92324.0,0.0768]
[1740460948478,0.16454085,92365.0,92324.0,0.0768]
[1740460948693,0.01454085,92363.0,92324.0,0.0768]
[1740460949095,0.01454085,92361.0,92324.0,0.0768]
[1740460949501,0.01454085,92364.0,92324.0,0.0768]
[1740460950054,0.007,92363.0,92324.0,0.0768]
[1740460950474,0.35891125,92366.0,92324.0,0.0768]
[1740460950963,0.02466309,92365.0,92324.0,0.0768]
[1740460951202,0.01699012,92356.0,92324.0,0.0768]
[1740460951369,0.01699012,92356.0,92325.0,0.0495]
[1740460951592,0.007,92361.0,92325.0,0.05330739]
[1740460951752,0.02466309,92365.0,92325.0,0.05330739]
[1740460951952,0.02466309,92365.0,92325.0,0.0495]
[1740460952153,0.32641144,92364.0,92325.0,0.0495]
[1740460952338,0.16454085,92363.0,92325.0,0.0495]
[1740460952531,0.007,92356.0,92325.0,0.0495]
[1740460952880,0.007,92356.0,92326.0,0.0038108]
[1740460953865,0.16454085,92363.0,92326.0,0.0038108]
[1740460954061,0.01454085,92362.0,92325.0,0.0495]
[1740460954789,0.006,92356.0,92325.0,0.0495]
[1740460955020,0.01454085,92362.0,92325.0,0.0495]
[1740460955205,0.01454085,92362.0,92326.0,0.00457289]
[1740460955554,0.01454085,92362.0,92325.0,0.0495]
[1740460955555,0.01699003,92353.0,92325.0,0.0495]
[1740460955846,0.01699003,92353.0,92327.0,0.00457273]
[1740460956044,0.01699003,92353.0,92325.0,0.0495]
[1740460956247,0.01699003,92353.0,92328.0,0.00457273]
[1740460956421,0.01699003,92353.0,92325.0,0.04549511]
[1740460956946,0.01699003,92353.0,92326.0,0.00456547]
[1740460957653,0.02199003,92353.0,92326.0,0.00456547]
[1740460957868,0.01699003,92353.0,92326.0,0.00456547]
[1740460957993,0.15,92351.0,92326.0,0.00456547]
[1740460958395,0.15,92351.0,92325.0,0.04719271]
[1740460958596,0.1509818,92351.0,92325.0,0.04719271]
[1740460959071,0.1579818,92351.0,92325.0,0.04719271]
[1740460959271,0.1619818,92351.0,92325.0,0.04719271]
[1740460960360,0.1549818,92351.0,92325.0,0.04719271]
[1740460960680,0.1619818,92351.0,92325.0,0.04719271]
[1740460961107,0.1579818,92351.0,92325.0,0.04719271]
[1740460961481,0.1619818,92351.0,92325.0,0.04719271]
[1740460964054,0.15,92349.0,92325.0,0.04719271]
[1740460965301,0.156,92349.0,92325.0,0.04719271]
[1740460965530,0.159,92349.0,92325.0,0.04719271]
[1740460967584,0.159,92349.0,92326.0,0.078]
[1740460968212,0.159,92349.0,92328.0,0.1258]
[1740460968436,0.153,92349.0,92331.0,0.0778]
[1740460968639,0.19787853,92350.0,92333.0,0.0778]
[1740460968867,0.19787853,92350.0,92325.0,0.0016976]
[1740460968868,0.006,92349.0,92335.0,0.0754]
[1740460969089,0.009,92349.0,92335.0,0.0754]
[1740460969291,0.009,92349.0,92337.0,0.0781]
[1740460969564,0.006,92349.0,92337.0,0.0781]
[1740460969789,0.006,92349.0,92338.0,0.00569419]
[1740460970093,0.006,92349.0,92339.0,0.0781]
[1740460970297,0.19787853,92350.0,92339.0,0.08265535]
[1740460970475,0.19787853,92350.0,92339.0,0.08379418]
[1740460970678,0.156,92349.0,92339.0,0.08379418]
[1740460971076,0.156,92349.0,92341.0,0.0781]
[1740460971275,0.156,92349.0,92340.0,0.048]
[1740460971276,0.159,92349.0,92342.0,0.00455535]
[1740460971480,0.159,92349.0,92342.0,0.0781]
[1740460971657,0.153,92349.0,92343.0,0.05255535]
[1740460972018,0.006,92350.0,92344.0,0.0781]
[1740460972512,0.006,92350.0,92345.0,0.0045408]
[1740460972944,0.002,92349.0,92345.0,0.0045408]
[1740460973934,0.008,92349.0,92345.0,0.0045408]
[1740460974136,0.006,92349.0,92345.0,0.0045408]
[1740460974343,0.0008488,92364.0,92345.0,0.0045408]
[1740460974570,0.002,92349.0,92345.0,0.0045408]
[1740460975410,0.0008488,92364.0,92345.0,0.0045408]
[1740460975528,0.0058488,92364.0,92345.0,0.0045408]
[1740460975953,0.0008488,92364.0,92345.0,0.0045408]
[1740460976234,0.01699016,92360.0,92345.0,0.0045408]
[1740460976842,0.01699016,92360.0,92345.0,0.01760488]
[1740460977041,0.01699016,92360.0,92346.0,0.0774]
[1740460977290,0.01699016,92360.0,92347.0,0.0037609]
[1740460977465,0.02299016,92360.0,92347.0,0.00541307]
[1740460977883,0.01699016,92360.0,92347.0,0.00541307]
[1740460978245,0.02099016,92360.0,92347.0,0.00541307]
[1740460979139,0.02199016,92360.0,92347.0,0.00541307]
[1740460980319,0.01799016,92360.0,92348.0,0.0783]
[1740460980643,0.02199016,92360.0,92350.0,0.0783]
[1740460981155,0.01883936,92360.0,92351.0,0.0054078]
[1740460981372,0.0008492,92360.0,92352.0,0.0783]
[1740460981570,0.0048492,92360.0,92352.0,0.0837078]
[1740460981775,0.0058492,92360.0,92352.0,0.0837078]
[1740460981969,0.0008492,92360.0,92352.0,0.0837078]
[1740460983936,0.0008492,92360.0,92354.0,0.0782]
[1740460984200,0.0008492,92360.0,92355.0,0.0477]
[1740460984331,0.0008492,92360.0,92356.0,0.0782]
[1740460984529,0.0008492,92360.0,92339.0,0.02]
[1740460984530,0.0008492,92360.0,92358.0,0.0825]
[1740460984732,0.0008492,92360.0,92359.0,0.1304]
[1740460984993,0.01783561,92360.0,92359.0,0.13191557]
[1740460985147,0.01783561,92360.0,92359.0,0.13729063]
[1740460985355,0.0008492,92360.0,92359.0,0.13729063]
[1740460985622,0.0008492,92360.0,92359.0,0.21242539]
[1740460985906,0.0008488,92364.0,92363.0,0.1452]
[1740460986197,0.0008488,92364.0,92363.0,0.46911552]
[1740460986411,0.0008488,92364.0,92363.0,0.47297383]
[1740460987665,0.0008488,92364.0,92363.0,0.48751468]
[1740460987869,0.0018488,92364.0,92363.0,0.59858365]
[1740460988502,0.0008488,92364.0,92363.0,0.59558365]
[1740460989024,0.00012917,92370.0,92369.0,0.1479]
[1740460989222,0.00012917,92370.0,92369.0,0.16244085]
[1740460989427,0.00012917,92370.0,92369.0,0.16668234]
[1740460989602,0.00012917,92370.0,92369.0,0.22861266]
[1740460989805,0.00012917,92370.0,92369.0,0.22709747]
[1740460990005,0.000998,92421.0,92379.0,0.019]
[1740460990233,0.000998,92421.0,92382.0,0.1308]
[1740460990439,0.000998,92421.0,92384.0,0.1225]
[1740460990638,0.000998,92421.0,92386.0,0.0754]
[1740460990996,0.000998,92421.0,92386.0,0.07964149]
[1740460991223,0.01782716,92387.0,92386.0,0.07964149]
[1740460991647,0.01882716,92387.0,92386.0,0.07964149]
[1740460991881,0.01782716,92387.0,92386.0,0.07964149]
[1740460992204,0.0008488,92387.0,92386.0,0.07964149]
[1740460992612,0.0018488,92387.0,92386.0,0.08464149]
[1740460993395,0.0028488,92387.0,92386.0,0.08564149]
[1740460993582,0.0028488,92387.0,92386.0,0.40804149]
[1740460995666,0.01982721,92387.0,92386.0,0.40804149]
[1740460995830,0.01882721,92387.0,92386.0,0.40704149]
[1740460996227,0.01982721,92387.0,92386.0,0.40804149]
[1740460996443,0.01982721,92387.0,92386.0,0.45535564]
[1740460997134,0.01882721,92387.0,92386.0,0.40304149]
[1740460997287,0.01982721,92387.0,92386.0,0.40904149]
[1740460998709,0.0028488,92387.0,92386.0,0.40904149]
[1740460999491,0.00778684,92387.0,92386.0,0.33464149]
[1740460999714,0.0028488,92387.0,92386.0,0.01224149]
[1740461000448,0.0018488,92387.0,92386.0,0.01124149]
[1740461000670,0.0008488,92387.0,92386.0,0.00524149]
[1740461000992,0.0008488,92387.0,92386.0,0.003]
[1740461001191,0.0008488,92387.0,92386.0,0.00615346]
[1740461001964,0.0008488,92387.0,92386.0,0.01115346]
[1740461002417,0.0008488,92387.0,92386.0,0.01015346]
[1740461002909,0.0008488,92387.0,92386.0,0.01115346]
[1740461003123,0.0008488,92387.0,92386.0,0.01015346]
[1740461003262,0.0008488,92387.0,92386.0,0.00515346]
[1740461003636,0.0008488,92387.0,92386.0,0.004]
[1740461003811,0.0008488,92387.0,92386.0,0.00916499]
[1740461005015,0.0008488,92387.0,92386.0,0.01086219]
[1740461006115,0.0178294,92387.0,92386.0,0.01086219]
[1740461006316,0.0178294,92387.0,92386.0,0.0056972]
[1740461006805,0.0178294,92387.0,92386.0,0.01089124]
[1740461009119,0.0008488,92387.0,92386.0,0.01089124]
[1740461011638,0.0008488,92387.0,92386.0,0.0056972]
[1740461012149,0.0008488,92387.0,92386.0,0.0046972]
[1740461012551,0.0008488,92387.0,92386.0,0.0108959]
[1740461012672,0.0008488,92387.0,92386.0,0.0026972]
[1740461012873,0.0008488,92387.0,92386.0,0.0098959]
[1740461013273,0.0008488,92387.0,92386.0,0.0108959]
[1740461013726,0.01783038,92387.0,92386.0,0.0108959]
[1740461014303,0.01783038,92387.0,92386.0,0.0056972]
[1740461014681,0.01783038,92387.0,92386.0,0.01090304]
[1740461015308,0.09613038,92387.0,92386.0,0.01090304]
[1740461015519,0.24613038,92387.0,92386.0,0.01090304]
[1740461015720,0.24613038,92387.0,92386.0,0.0056972]
[1740461016079,0.24613038,92387.0,92386.0,0.0046972]
[1740461016258,0.25313038,92387.0,92386.0,0.0016972]
[1740461016467,0.25713038,92387.0,92386.0,0.0016972]
[1740461016659,0.25013038,92387.0,92386.0,0.0016972]
[1740461016889,0.24613038,92387.0,92386.0,0.0016972]
[1740461017090,0.25957537,92387.0,92386.0,0.0016972]
[1740461017268,0.26357537,92387.0,92386.0,0.0016972]
[1740461018430,0.26357537,92387.0,92386.0,0.00023612]
[1740461018759,0.25713038,92387.0,92386.0,0.00023612]
[1740461019020,0.2401488,92387.0,92386.0,0.00023612]
[1740461019214,0.2331488,92387.0,92386.0,0.00023612]
[1740461019527,0.2361488,92387.0,92386.0,0.00023612]
[1740461019730,0.1618488,92387.0,92386.0,0.00023612]
[1740461021303,0.1548488,92387.0,92386.0,0.00023612]
[1740461021695,0.1608488,92387.0,92386.0,0.00023612]
[1740461021893,0.1568488,92387.0,92386.0,0.00023612]
[1740461022093,0.1508488,92387.0,92386.0,0.00023612]
[1740461022295,0.1538488,92387.0,92386.0,0.00023612]
[1740461022538,0.1608488,92387.0,92386.0,0.00023612]
[1740461022893,0.1538488,92387.0,92386.0,0.00023612]
[1740461023127,0.17083315,92387.0,92386.0,0.00023612]
[1740461023395,0.17683315,92387.0,92386.0,0.00023612]
[1740461024725,0.17083315,92387.0,92386.0,0.00023612]
[1740461024917,0.17683315,92387.0,92386.0,0.00023612]
[1740461025057,0.17383315,92387.0,92386.0,0.00023612]
[1740461025477,0.17683315,92387.0,92386.0,0.00023612]
[1740461026752,0.17383315,92387.0,92386.0,0.00023612]
[1740461026965,0.17683315,92387.0,92386.0,0.00023612]
[1740461027608,0.17083315,92387.0,92386.0,0.00023612]
[1740461027851,0.17683315,92387.0,92386.0,0.00023612]
[1740461028334,0.26550866,92387.0,92386.0,0.00023612]
[1740461028565,0.35350855,92387.0,92386.0,0.00023612]
[1740461028909,0.31186516,92387.0,92386.0,0.00023612]
[1740461029119,0.001,92377.0,92354.0,0.3224]
[1740461029323,0.001,92377.0,92355.0,0.00464783]
[1740461029517,0.00647551,92376.0,92355.0,0.00464783]
[1740461029745,0.0816,92375.0,92355.0,0.00464783]
[1740461030102,0.00647551,92374.0,92355.0,0.00464783]
[1740461031130,0.0816,92375.0,92355.0,0.00464783]
[1740461031891,0.00847551,92374.0,92355.0,0.00464783]
[1740461032231,0.00647551,92374.0,92355.0,0.00564783]
[1740461032430,0.0816,92375.0,92355.0,0.00464783]
[1740461032629,0.0836,92375.0,92355.0,0.00464783]
[1740461032856,0.0846,92375.0,92355.0,0.00464783]
[1740461033032,0.01454085,92383.0,92355.0,0.00464783]
[1740461033429,0.01698668,92371.0,92355.0,0.00564783]
[1740461034255,0.01698668,92371.0,92355.0,0.00464783]
[1740461035098,0.01698668,92371.0,92357.0,0.045]
[1740461035494,0.01698668,92371.0,92359.0,0.0771]
[1740461036113,0.01698668,92371.0,92360.0,0.0046916]
[1740461036336,0.0761,92386.0,92360.0,0.0046916]
[1740461036654,0.01698538,92369.0,92360.0,0.0046916]
[1740461036853,0.0761,92386.0,92360.0,0.0046916]
[1740461037105,0.0008488,92387.0,92360.0,0.0046916]
[1740461037106,0.002,92371.0,92360.0,0.0046916]
[1740461037603,0.0008488,92387.0,92360.0,0.0046916]
[1740461037847,0.001,92369.0,92360.0,0.0046916]
[1740461038376,0.0008488,92387.0,92360.0,0.0046916]
[1740461038708,0.001,92371.0,92360.0,0.0046916]
[1740461039126,0.001,92371.0,92360.0,0.0056916]
[1740461039756,0.01698605,92369.0,92360.0,0.0056916]
[1740461039956,0.01698605,92369.0,92360.0,0.0046916]
[1740461041124,0.01798605,92369.0,92360.0,0.0046916]
[1740461041726,0.00648116,92368.0,92360.0,0.0046916]
[1740461042057,0.00648116,92368.0,92360.0,0.0056916]
[1740461042415,0.00648116,92368.0,92360.0,0.001]
[1740461042770,0.00648116,92368.0,92359.0,0.0016972]
[1740461043194,0.00648116,92368.0,92360.0,0.002]
[1740461043409,0.00748116,92368.0,92360.0,0.002]
[1740461043805,0.00748116,92368.0,92359.0,0.0016972]
[1740461044005,0.00648116,92368.0,92359.0,0.0016972]
[1740461044512,0.00748116,92368.0,92359.0,0.0016972]
[1740461045133,0.00748116,92368.0,92359.0,0.0036972]
[1740461047013,0.001,92368.0,92359.0,0.0036972]
[1740461047321,0.001,92368.0,92360.0,0.011]
[1740461047657,0.001,92368.0,92361.0,0.00469468]
[1740461048292,0.01698605,92369.0,92360.0,0.00307418]
[1740461048448,0.01698605,92369.0,92362.0,0.00410784]
[1740461048663,0.00650419,92368.0,92360.0,0.00307418]
[1740461048862,0.00650419,92368.0,92361.0,0.002]
[1740461049117,0.00650419,92368.0,92360.0,0.00307418]
[1740461049600,0.00650419,92368.0,92360.0,0.00407418]
[1740461049769,0.01454085,92367.0,92360.0,0.00307418]
[1740461050730,0.009,92368.0,92361.0,0.0814]
[1740461051172,0.009,92368.0,92362.0,0.00410784]
[1740461051361,0.003,92368.0,92362.0,0.00410784]
[1740461051487,0.006,92367.0,92362.0,0.00410784]
[1740461051691,0.006,92367.0,92364.0,0.082]
[1740461052073,0.006,92367.0,92362.0,0.00410784]
[1740461052074,0.006,92367.0,92366.0,0.0783]
[1740461052640,0.006,92367.0,92366.0,0.08244198]
[1740461052965,0.002,92368.0,92366.0,0.08395758]
[1740461053206,0.005,92368.0,92366.0,0.08395758]
[1740461053389,0.005,92368.0,92366.0,0.08644198]
[1740461053588,0.0008486,92385.0,92366.0,0.08644198]
[1740461053876,0.001,92367.0,92366.0,0.08844198]
[1740461054106,0.001,92367.0,92366.0,0.08995752]
[1740461054379,0.0008486,92385.0,92366.0,0.08644198]
[1740461054604,0.0008486,92385.0,92366.0,0.08995752]
[1740461054795,0.001,92368.0,92366.0,0.08444198]
[1740461055007,0.001,92367.0,92366.0,0.09195752]
[1740461055364,0.001,92368.0,92366.0,0.08444198]
[1740461055576,0.001,92368.0,92366.0,0.08644198]
[1740461055899,0.0008486,92385.0,92366.0,0.08244198]
[1740461056135,0.0008486,92385.0,92368.0,0.0812]
[1740461056273,0.0008486,92385.0,92368.0,0.0792]
[1740461056475,0.0008486,92385.0,92369.0,0.00411738]
[1740461056871,0.0008486,92385.0,92369.0,0.00311738]
[1740461056872,0.01698331,92381.0,92369.0,0.00311738]
[1740461057041,0.01698331,92381.0,92369.0,0.00399238]
[1740461058910,0.01698331,92381.0,92369.0,0.00699238]
[1740461059112,0.01698331,92381.0,92369.0,0.00599238]
[1740461059308,0.01698331,92381.0,92370.0,0.08113079]
[1740461059593,0.01698331,92381.0,92371.0,0.13954275]
[1740461059832,0.01698331,92381.0,92378.0,0.0781]
[1740461060118,0.01698331,92381.0,92380.0,0.1463]
[1740461060618,0.01698331,92381.0,92380.0,0.15157448]
[1740461060838,0.01698331,92381.0,92380.0,0.16775193]
[1740461061053,0.0008486,92385.0,92380.0,0.08965193]
[1740461061277,0.0008486,92385.0,92384.0,0.10681262]
[1740461061505,0.0008486,92385.0,92384.0,0.18642766]
[1740461061687,0.0008486,92385.0,92384.0,0.19016329]
[1740461061904,0.0008486,92385.0,92384.0,0.18916329]
[1740461062365,0.0018486,92385.0,92384.0,0.22059962]
[1740461062569,0.00193251,92385.0,92384.0,0.21908458]
[1740461063744,0.00193251,92385.0,92384.0,0.21808458]
[1740461064112,0.00093251,92385.0,92384.0,0.21108458]
[1740461064314,0.00093251,92385.0,92384.0,0.18664825]
[1740461064535,0.01991049,92385.0,92384.0,0.20116329]
[1740461064951,0.01991049,92385.0,92384.0,0.52356329]
[1740461065196,0.01991049,92385.0,92384.0,0.52204825]
[1740461065554,0.01991049,92385.0,92384.0,0.43723563]
[1740461065750,0.01891049,92385.0,92384.0,0.4265]
[1740461065958,0.01891049,92385.0,92384.0,0.4005]
[1740461066163,0.01791049,92385.0,92384.0,0.4075]
[1740461066384,0.01891049,92385.0,92384.0,0.4145]
[1740461066959,0.01791049,92385.0,92384.0,0.4075]
[1740461067161,0.01791049,92385.0,92384.0,0.3294]
[1740461067576,0.01791049,92385.0,92384.0,0.3224]
[1740461067787,0.01891049,92385.0,92384.0,0.013]
[1740461067989,0.01991049,92385.0,92384.0,0.013]
[1740461068202,0.01991049,92385.0,92384.0,0.006]
[1740461068414,0.02730694,92385.0,92384.0,0.013]
[1740461068837,0.00832896,92385.0,92384.0,0.006]
[1740461069056,0.00293251,92385.0,92384.0,0.013]
[1740461069259,0.00193251,92385.0,92366.0,0.0016976]
[1740461069475,0.00193251,92385.0,92384.0,0.006]
[1740461069917,0.00093251,92385.0,92366.0,0.0016976]
[1740461070123,0.00093251,92385.0,92384.0,0.001]
[1740461070390,0.00693251,92385.0,92384.0,0.001]
[1740461070812,0.00393251,92385.0,92366.0,0.0016976]
[1740461071126,0.00093251,92385.0,92366.0,0.0016976]
[1740461071244,0.00393251,92385.0,92366.0,0.0016976]
[1740461071878,0.00693251,92385.0,92366.0,0.0016976]
[1740461072082,0.00093251,92385.0,92366.0,0.0016976]
[1740461072508,0.00293251,92385.0,92366.0,0.0016976]
[1740461072722,0.00893251,92385.0,92366.0,0.0016976]
[1740461073078,0.01698353,92381.0,92366.0,0.0016976]
[1740461074265,0.01698353,92381.0,92367.0,0.0453]
[1740461074470,0.01798353,92381.0,92367.0,0.0453]
[1740461074898,0.01698353,92381.0,92367.0,0.0453]
[1740461075096,0.01798353,92381.0,92367.0,0.0453]
[1740461075527,0.02098353,92381.0,92367.0,0.0453]
[1740461075926,0.01798353,92381.0,92367.0,0.0453]
[1740461076147,0.02098353,92381.0,92367.0,0.0453]
[1740461076505,0.02098353,92381.0,92369.0,0.0762]
[1740461076886,0.02198353,92381.0,92369.0,0.07771544]
[1740461077654,0.01998353,92381.0,92369.0,0.07771544]
[1740461078024,0.01998353,92381.0,92369.0,0.07871544]
[1740461078222,0.01998353,92381.0,92369.0,0.07771544]
[1740461078418,0.01998353,92381.0,92369.0,0.0762]
[1740461078652,0.01698353,92381.0,92369.0,0.0772]
[1740461079199,0.01998353,92381.0,92370.0,0.00151544]
[1740461079547,0.01698353,92381.0,92370.0,0.00151544]
[1740461079787,0.01898353,92381.0,92370.0,0.00151544]
[1740461079990,0.01898353,92381.0,92371.0,0.0782]
[1740461080189,0.002,92381.0,92373.0,0.02]
[1740461080376,0.00093251,92385.0,92374.0,0.00151528]
[1740461080513,0.002,92381.0,92374.0,0.00151528]
[1740461081767,0.00093251,92385.0,92374.0,0.00151528]
[1740461082120,0.002,92381.0,92374.0,0.00151528]
[1740461082545,0.00093251,92385.0,92374.0,0.00151528]
[1740461082950,0.00393251,92385.0,92374.0,0.00151528]
[1740461083497,0.05495111,92423.0,92374.0,0.00151528]
[1740461083715,0.00650605,92417.0,92375.0,0.00997153]
[1740461083910,0.001,92385.0,92376.0,0.00151527]
[1740461084179,0.001,92385.0,92374.0,0.3224]
[1740461084330,0.01698085,92383.0,92374.0,0.3224]
[1740461085189,0.01698085,92383.0,92374.0,0.32248391]
[1740461085706,0.01698085,92383.0,92375.0,0.04358377]
[1740461085889,0.01698085,92383.0,92375.0,0.00151538]
[1740461086890,0.01698085,92383.0,92375.0,0.00251538]
[1740461087130,0.01698085,92383.0,92375.0,0.003]
[1740461087337,0.01698085,92383.0,92376.0,0.00151538]
[1740461087518,0.01698085,92383.0,92375.0,0.003]
[1740461087692,0.01698085,92383.0,92375.0,0.006]
[1740461087875,0.15,92410.0,92375.0,0.006]
[1740461088249,0.01698145,92386.0,92375.0,0.005]
[1740461088451,0.15651296,92410.0,92375.0,0.006]
[1740461088667,0.48301296,92410.0,92375.0,0.006]
[1740461089044,0.48301296,92410.0,92375.0,0.005]
[1740461089244,0.49001296,92410.0,92375.0,0.006]
[1740461089455,0.49001296,92410.0,92375.0,0.001]
[1740461089662,0.0008488,92385.0,92375.0,0.001]
[1740461089875,0.0008488,92385.0,92375.0,0.002]
[1740461090621,0.0008488,92385.0,92375.0,0.001]
[1740461090833,0.0008488,92385.0,92375.0,0.003]
[1740461091259,0.0008488,92385.0,92374.0,0.02178151]
[1740461091462,0.0008488,92385.0,92375.0,0.002]
[1740461092603,0.0008488,92385.0,92374.0,0.02178151]
[1740461093104,0.0008488,92385.0,92374.0,0.02378151]
[1740461093307,0.0008488,92385.0,92374.0,0.00178151]
[1740461093526,0.0008488,92385.0,92374.0,0.02178151]
[1740461094679,0.0008488,92385.0,92374.0,0.02378151]
[1740461096089,0.0169811,92383.0,92374.0,0.02378151]
[1740461096837,0.0169811,92383.0,92374.0,0.02178151]
[1740461097244,0.0169811,92383.0,92374.0,0.02378151]
[1740461097460,0.0169811,92383.0,92374.0,0.02478151]
[1740461098765,0.0169811,92383.0,92374.0,0.02378151]
[1740461099169,0.0169811,92383.0,92374.0,0.02178151]
[1740461099371,0.0008488,92385.0,92374.0,0.02178151]
[1740461099576,0.0008488,92385.0,92374.0,0.00378151]
[1740461100458,0.0008488,92385.0,92374.0,0.02529692]
[1740461100655,0.0018488,92385.0,92375.0,0.0765]